bitfinex/quotes_SOLUSD_20250722
["timestamp","ask_amount","ask_price","bid_price","bid_amount"]
[1753208065480,0.06,203.09,203.08,87.33885178]
[1753208065682,0.06,203.09,203.08,102.85578032]
[1753208066961,1e-08,203.13,203.12,46.61684554]
[1753208067173,0.65,203.25,203.16,46.47468397]
[1753208067463,0.65,203.25,203.19,29.69]
[1753208067667,0.65,203.28,203.23,14.81692854]
[1753208067975,4.91880002,203.31,203.25,14.81692854]
[1753208067976,14.81692854,203.31,203.25,14.81692854]
[1753208068380,15.46692854,203.3,203.24,14.81692854]
[1753208068560,0.65,203.3,203.25,14.81692854]
[1753208068765,0.65,203.29,203.21,47.17468397]
[1753208068962,6.0692,203.34,203.26,14.81692854]
[1753208069285,12.29166378,203.39,203.32,14.81692854]
[1753208069286,14.81692854,203.39,203.32,14.81692854]
[1753208069468,4.00978879,203.43,203.38,14.81692854]
[1753208069673,4.00978879,203.43,203.4,14.81692854]
[1753208069876,15.46692854,203.46,203.4,14.81692854]
[1753208070069,5.56497706,203.46,203.39,14.81692854]
[1753208070277,20.3819056,203.46,203.39,14.81692854]
[1753208070505,20.3819056,203.46,203.37,14.81692854]
[1753208070506,40.81692854,203.43,203.37,14.81692854]
[1753208070664,0.14216157,203.41,203.26,5.61970513]
[1753208070991,0.14216157,203.39,203.3,14.81692854]
[1753208071167,4.91712588,203.38,203.32,14.81692854]
[1753208071558,4.91712588,203.38,203.33,14.81692854]
[1753208071762,26.0,203.39,203.35,14.81692854]
[1753208071963,26.0,203.39,203.32,36.12]
[1753208072193,0.14216157,203.36,203.25,0.7]
[1753208072376,14.81692854,203.34,203.27,14.81692854]
[1753208073063,19.87720352,203.33,203.25,36.82]
[1753208073270,15.46692854,203.32,203.25,50.93692854]
[1753208073473,14.81692854,203.31,203.25,36.12]
[1753208073871,14.81692854,203.3,203.25,36.12]
[1753208074068,14.81692854,203.27,203.2,14.81692854]
[1753208074388,15.46692854,203.26,203.19,50.91692854]
[1753208074908,14.81692854,203.25,203.19,14.81692854]
[1753208075119,4.92150204,203.19,203.08,0.7]
[1753208075397,14.81692854,203.16,203.09,14.81692854]
[1753208075891,0.65,203.18,203.08,65.81]
[1753208076189,14.81692854,203.15,203.08,36.12]
[1753208076388,14.81692854,203.15,203.08,50.93692854]
[1753208076690,14.81692854,203.13,203.07,14.81692854]
[1753208076876,14.81692854,203.12,203.06,14.81692854]
[1753208077393,14.81692854,203.11,203.04,36.16]
[1753208077568,14.81692854,203.09,203.04,36.16]
[1753208077769,15.46692854,203.08,203.04,36.16]
[1753208078094,15.46692854,203.07,203.01,31.60161251]
[1753208078294,15.46692854,203.07,203.0,50.97692854]
[1753208078587,0.65,203.07,203.0,50.97692854]
[1753208078789,15.46692854,203.07,203.0,55.90296742]
[1753208078988,15.46692854,203.07,203.0,55.90291563]
[1753208079178,15.46692854,203.07,203.01,14.81692854]
[1753208079684,15.46692854,203.07,203.0,41.08598709]
[1753208079685,15.46692854,203.07,203.0,55.90291563]
[1753208080289,15.46692854,203.07,203.0,50.97692854]
[1753208080487,26.0,203.11,203.0,50.97692854]
[1753208080488,26.0,203.11,203.02,14.81692854]
[1753208080694,26.0,203.11,203.02,0.7]
[1753208080998,40.81692854,203.11,203.04,14.81692854]
[1753208081189,6.56973185,203.16,203.09,14.81692854]
[1753208081190,14.81692854,203.15,203.09,14.81692854]
[1753208081787,26.0,203.15,203.09,19.74081182]
[1753208081983,40.81692854,203.15,203.09,19.74081182]
[1753208082391,14.81692854,203.12,203.03,29.09808199]
[1753208082708,14.81692854,203.13,203.07,14.81692854]
[1753208083008,0.65,203.17,203.12,14.81692854]
[1753208083288,41.46692854,203.2,203.13,14.81692854]
[1753208083490,41.46692854,203.2,203.08,83.31468397]
[1753208083491,41.46692854,203.2,203.14,19.73964193]
[1753208083801,14.81692854,203.19,203.14,4.92271339]
[1753208084095,15.46692854,203.19,203.14,4.92271339]
[1753208084298,40.81692854,203.2,203.14,19.73964193]
[1753208085116,0.65,203.22,203.15,14.81692854]
[1753208085401,14.81692854,203.23,203.18,4.92174426]
[1753208085566,14.81692854,203.24,203.18,19.7386728]
[1753208085993,14.81692854,203.23,203.18,4.92174426]
[1753208086899,26.0,203.24,203.18,4.92174426]
[1753208086900,26.0,203.22,203.19,14.81692854]
[1753208087269,15.46692854,203.25,203.19,14.81692854]
[1753208087476,0.65,203.25,203.2,14.81692854]
[1753208087794,0.06,203.28,203.24,14.81692854]
[1753208087996,0.06,203.28,203.23,14.81692854]
[1753208088180,14.81692854,203.24,203.18,14.81692854]
[1753208088498,14.81692854,203.23,203.17,50.91692854]
[1753208088809,26.75,203.28,203.21,14.81692854]
[1753208089096,26.75,203.28,203.17,82.57468397]
[1753208089097,14.81692854,203.26,203.2,14.81692854]
[1753208089405,14.81692854,203.21,203.14,16.78468397]
[1753208089695,14.81692854,203.22,203.16,14.81692854]
[1753208090200,14.81692854,203.18,203.1,16.78468397]
[1753208090388,14.81692854,203.18,203.09,12.9597776]
[1753208090389,14.81692854,203.15,203.09,0.65]
[1753208090573,14.81692854,203.14,203.09,36.1]
[1753208090776,0.69,203.16,203.11,14.81692854]
[1753208090975,15.50692854,203.15,203.09,41.0239241]
[1753208091282,14.81692854,203.13,203.09,36.1]
[1753208091475,14.81692854,203.14,203.09,41.02392252]
[1753208092202,15.50692854,203.15,203.09,55.84085106]
[1753208092386,40.81692854,203.17,203.11,14.81692854]
[1753208092698,26.0,203.17,203.12,14.81692854]
[1753208093086,14.81692854,203.15,203.1,29.69]
[1753208093280,26.0,203.17,203.1,29.69]
[1753208093590,26.0,203.17,203.12,44.50692854]
[1753208093790,14.81692854,203.2,203.14,14.81692854]
[1753208094001,50.89692854,203.23,203.17,14.81692854]
[1753208094303,14.81692854,203.21,203.16,29.69]
[1753208094480,36.08,203.23,203.14,36.08]
[1753208094481,14.81692854,203.17,203.14,29.69]
[1753208094679,14.81692854,203.15,203.09,50.91692854]
[1753208094880,14.81692854,203.14,203.09,36.1]
[1753208095294,14.81692854,203.12,203.06,19.74158135]
[1753208095495,0.69,203.13,203.07,29.69]
[1753208095708,14.81692854,203.15,203.09,14.81692854]
[1753208096419,14.81692854,203.13,203.07,15.46692854]
[1753208096587,14.81692854,203.14,203.08,19.74109635]
[1753208097219,14.81692854,203.09,203.04,52.86468397]
[1753208097509,14.81692854,203.09,203.0,12.31486151]
[1753208097510,26.0,203.11,203.02,4.92562309]
[1753208097715,14.81692854,203.09,203.03,31.60161251]
[1753208097885,14.81692854,203.08,203.03,31.60161251]
[1753208098507,14.81692854,203.09,203.03,32.25161251]
[1753208098713,14.81692854,203.1,203.05,16.78468397]
[1753208099017,0.69,203.15,203.06,0.65]
[1753208099306,14.81692854,203.11,203.06,36.73]
[1753208099487,14.81692854,203.11,203.07,16.78468397]
[1753208099686,0.69,203.15,203.08,14.81692854]
[1753208099903,14.81692854,203.16,203.1,14.81692854]
[1753208100288,21.40642854,203.2,203.14,14.81692854]
[1753208100495,14.81692854,203.2,203.14,14.81692854]
[1753208100700,14.81692854,203.18,203.12,16.78468397]
[1753208100890,26.0,203.21,203.11,36.79]
[1753208100891,14.81692854,203.13,203.11,36.14]
[1753208101097,14.81692854,203.15,203.11,36.14]
[1753208101307,14.81692854,203.12,203.06,36.14]
[1753208101509,0.69,203.11,203.06,36.14]
[1753208101689,14.81692854,203.09,203.06,36.14]
[1753208101887,14.81692854,203.09,203.04,4.9251315]
[1753208102303,14.81692854,203.08,203.02,41.71552108]
[1753208102513,15.50692854,203.08,203.02,41.06552108]
[1753208102689,14.81692854,203.09,203.03,14.81692854]
[1753208102889,26.69,203.12,203.04,14.81692854]
[1753208102890,14.81692854,203.1,203.04,14.81692854]
[1753208104027,14.81692854,203.07,203.02,41.06552108]
[1753208104193,15.50692854,203.07,203.02,41.06552108]
[1753208104512,26.0,203.11,203.01,0.03]
[1753208104513,14.81692854,203.05,203.01,0.03]
[1753208104726,15.50692854,203.06,203.01,0.03]
[1753208105399,0.69,203.05,203.01,0.03]
[1753208105801,26.69,203.09,203.01,45.18692854]
[1753208105998,40.81692854,203.08,203.02,0.65]
[1753208106325,26.0,203.08,203.03,14.81692854]
[1753208106708,14.81692854,203.06,203.02,4.92545591]
[1753208106899,14.81692854,203.06,203.01,4.95584058]
[1753208106900,14.81692854,203.05,203.01,4.95584058]
[1753208107092,15.50692854,203.05,203.01,4.95584058]
[1753208107296,0.69,203.05,203.01,4.95584058]
[1753208107497,26.0,203.11,203.05,16.78468397]
[1753208107708,21.75012854,203.14,203.08,14.81692854]
[1753208108204,0.69,203.13,203.08,14.81692854]
[1753208108407,15.50692854,203.17,203.11,14.81692854]
[1753208108602,6.1982,203.2,203.09,0.65]
[1753208108603,21.70512854,203.2,203.14,14.81692854]
[1753208108801,21.70512854,203.2,203.15,14.81692854]
[1753208108802,6.8882,203.2,203.15,14.81692854]
[1753208109298,36.12,203.22,203.14,16.78468397]
[1753208109498,36.12,203.22,203.16,14.81692854]
[1753208109813,50.93692854,203.22,203.16,14.81692854]
[1753208110012,50.93692854,203.22,203.18,14.81692854]
[1753208110013,36.12,203.22,203.18,14.81692854]
[1753208110322,0.06,203.23,203.2,14.81692854]
[1753208110621,0.06,203.23,203.21,4.92101766]
[1753208111401,0.06,203.23,203.21,19.7379462]
[1753208111610,0.06,203.23,203.21,4.92101766]
[1753208111800,0.06,203.23,203.19,14.81692854]
[1753208112535,14.81692854,203.2,203.11,0.65]
[1753208112710,14.81692854,203.16,203.09,31.60161251]
[1753208112899,14.81692854,203.16,203.09,14.81692854]
[1753208113219,5.61167557,203.19,203.08,41.65416781]
[1753208113220,14.81692854,203.13,203.08,41.65416781]
[1753208113529,14.81692854,203.13,203.08,41.00416781]
[1753208113738,26.69,203.17,203.03,14.81692854]
[1753208113739,14.81692854,203.09,203.03,14.81692854]
[1753208114102,37.6246,203.14,203.08,14.81692854]
[1753208114103,26.0,203.14,203.08,14.81692854]
[1753208114300,26.0,203.14,203.09,14.81692854]
[1753208114531,21.08702854,203.17,203.11,14.81692854]
[1753208114825,21.08702854,203.17,203.12,4.9231981]
[1753208115034,41.50692854,203.18,203.12,19.74012664]
[1753208115235,0.69,203.17,203.12,4.9231981]
[1753208115436,15.50692854,203.17,203.12,4.9231981]
[1753208115807,15.50692854,203.17,203.11,19.74032826]
[1753208116009,15.50692854,203.17,203.12,29.69]
[1753208116511,26.0,203.18,203.15,14.81692854]
[1753208116714,0.06,203.23,203.17,19.73891505]
[1753208116920,0.06,203.23,203.2,14.81692854]
[1753208117935,0.06,203.23,203.19,29.69]
[1753208118102,0.68,203.22,203.19,29.69]
[1753208118299,0.68,203.21,203.19,29.69]
[1753208118505,14.87692854,203.23,203.19,29.69]
[1753208118833,0.06,203.23,203.2,14.81692854]
[1753208119020,0.06,203.23,203.19,49.42831794]
[1753208119215,0.06,203.23,203.19,29.69]
[1753208119412,0.74,203.23,203.19,34.61145465]
[1753208119624,0.06,203.23,203.2,15.49692854]
[1753208119825,0.06,203.23,203.2,45.18692854]
[1753208120023,0.06,203.23,203.21,14.81692854]
[1753208120231,0.06,203.23,203.22,44.50692854]
[1753208120536,0.06,203.23,203.22,61.29161251]
[1753208120727,0.06,203.23,203.22,66.89238802]
[1753208121522,0.06,203.23,203.22,52.07545948]
[1753208121724,0.06,203.23,203.21,44.50692854]
[1753208121916,0.06,203.23,203.22,31.60161251]
[1753208122231,0.06,203.28,203.26,46.47468397]
[1753208122537,0.06,203.28,203.27,97.37161251]
[1753208122720,0.06,203.28,203.27,102.29117762]
[1753208122918,0.06,203.38,203.31,61.29161251]
[1753208123117,0.06,203.43,203.37,61.29161251]
[1753208123320,0.06,203.43,203.4,61.29161251]
[1753208123533,0.06,203.43,203.4,61.97161251]
[1753208124119,1e-08,203.41,203.4,61.97161251]
[1753208124335,1.6256,203.57,203.47,29.69]
[1753208124644,6.3761,203.58,203.53,14.81692854]
[1753208124645,21.19302854,203.58,203.53,14.81692854]
[1753208124844,0.68,203.57,203.51,14.81692854]
[1753208125020,15.49692854,203.57,203.51,14.81692854]
[1753208125418,0.68,203.57,203.52,14.81692854]
[1753208125651,0.2,203.59,203.55,14.81692854]
[1753208126023,26.0,203.58,203.55,14.81692854]
[1753208126418,41.49692854,203.58,203.53,29.69]
[1753208126619,0.2,203.59,203.55,14.81692854]
[1753208126924,26.0,203.58,203.55,14.81692854]
[1753208127118,40.81692854,203.56,203.48,29.69]
[1753208127317,14.81692854,203.5,203.43,14.81692854]
[1753208127523,14.81692854,203.47,203.4,31.60161251]
[1753208127821,14.81692854,203.48,203.41,14.81692854]
[1753208128030,14.81692854,203.47,203.41,14.81692854]
[1753208128244,14.81692854,203.44,203.38,29.69]
[1753208128448,1.5837,203.52,203.42,31.60161251]
[1753208128620,0.68,203.55,203.5,14.81692854]
[1753208128823,14.81692854,203.53,203.47,14.81692854]
[1753208129043,14.81692854,203.53,203.44,46.47468397]
[1753208129044,14.81692854,203.52,203.46,14.81692854]
[1753208129333,5.05522555,203.54,203.46,14.81692854]
[1753208129334,0.68,203.55,203.5,14.81692854]
[1753208129532,6.3815,203.56,203.46,29.69]
[1753208129740,15.49692854,203.55,203.49,14.81692854]
[1753208129921,0.68,203.55,203.49,14.81692854]
[1753208130124,0.68,203.55,203.5,14.81692854]
[1753208130323,0.68,203.55,203.51,14.81692854]
[1753208130527,0.2,203.59,203.55,29.69]
[1753208130721,0.2,203.59,203.58,14.81692854]
[1753208131118,0.2,203.59,203.58,103.06368638]
[1753208131541,0.68,203.69,203.59,16.78468397]
[1753208131742,7.16526716,203.73,203.66,14.81692854]
[1753208131949,7.1491,203.77,203.7,14.81692854]
[1753208132148,14.81692854,203.72,203.63,0.68]
[1753208132346,14.81692854,203.73,203.66,14.81692854]
[1753208132640,14.81692854,203.74,203.68,14.81692854]
[1753208132940,14.81692854,203.75,203.69,14.81692854]
[1753208133138,14.81692854,203.71,203.64,0.68]
[1753208133347,14.81692854,203.71,203.65,14.81692854]
[1753208133550,14.81692854,203.68,203.61,14.81692854]
[1753208133921,14.81692854,203.64,203.57,14.81692854]
[1753208134121,0.68,203.66,203.6,14.81692854]
[1753208134639,40.95909011,203.67,203.63,14.81692854]
[1753208134640,26.0,203.67,203.63,14.81692854]
[1753208134835,19.72659075,203.68,203.61,14.81692854]
[1753208135038,4.90966221,203.68,203.63,14.81692854]
[1753208135241,20.40649499,203.69,203.63,14.81692854]
[1753208135454,20.40649499,203.69,203.6,34.60138937]
[1753208135455,14.81692854,203.66,203.6,29.69]
[1753208135628,0.68,203.69,203.64,14.81692854]
[1753208135829,14.81692854,203.66,203.61,29.69]
[1753208136158,14.81692854,203.63,203.57,44.50692854]
[1753208136456,14.81692854,203.59,203.53,31.60161251]
[1753208136625,0.68,203.62,203.53,31.60161251]
[1753208136626,0.68,203.62,203.55,14.81692854]
[1753208136826,0.68,203.62,203.53,21.6979554]
[1753208136827,5.59010319,203.67,203.61,14.81692854]
[1753208137055,26.0,203.64,203.6,14.81692854]
[1753208137227,26.0,203.64,203.59,14.81692854]
[1753208137427,14.81692854,203.6,203.54,14.81692854]
[1753208137719,14.81692854,203.6,203.52,0.68]
[1753208137934,14.81692854,203.59,203.52,14.81692854]
[1753208138139,0.68,203.6,203.53,14.81692854]
[1753208138324,14.81692854,203.59,203.53,14.81692854]
[1753208138535,26.0,203.64,203.58,14.81692854]
[1753208138742,0.68,203.69,203.63,14.81692854]
[1753208139050,26.0,203.68,203.64,14.81692854]
[1753208139236,15.49692854,203.71,203.64,14.81692854]
[1753208139626,15.49692854,203.71,203.65,14.81692854]
[1753208139825,20.40590135,203.71,203.65,14.81692854]
[1753208140319,0.68,203.71,203.65,14.81692854]
[1753208140552,36.92,203.76,203.68,14.81692854]
[1753208140732,14.81692854,203.75,203.69,14.81692854]
[1753208140939,14.81692854,203.75,203.69,19.72634717]
[1753208141135,0.68,203.76,203.7,14.81692854]
[1753208141329,14.81692854,203.75,203.67,29.69]
[1753208141525,15.49692854,203.76,203.7,14.81692854]
[1753208141731,14.81692854,203.75,203.69,44.50692854]
[1753208141932,0.68,203.76,203.69,44.50692854]
[1753208142141,14.81692854,203.75,203.69,44.50692854]
[1753208142342,0.68,203.76,203.7,14.81692854]
[1753208142542,15.49692854,203.76,203.7,14.81692854]
[1753208142943,15.49692854,203.76,203.7,19.72592737]
[1753208143145,2.4774,203.8,203.73,44.50692854]
[1753208143333,0.2,203.8,203.76,14.81692854]
[1753208143544,0.2,203.8,203.76,0.68]
[1753208143869,0.2,203.8,203.76,15.49692854]
[1753208144044,0.2,203.8,203.77,14.81692854]
[1753208144434,0.2,203.8,203.78,14.81692854]
[1753208144767,0.2,203.8,203.78,44.50692854]
[1753208145134,0.2,203.8,203.78,49.41394364]
[1753208145331,0.2,203.8,203.79,14.81692854]
[1753208145553,0.2,203.8,203.79,62.46231372]
[1753208145859,1.5089,204.02,203.89,29.69]
[1753208146040,15.49692854,203.94,203.87,14.81692854]
[1753208146233,15.49692854,203.94,203.88,14.81692854]
[1753208146234,0.68,203.94,203.88,14.81692854]
[1753208146434,14.81692854,203.93,203.84,0.68]
[1753208146645,14.81692854,203.88,203.81,14.81692854]
[1753208146853,0.68,203.96,203.86,14.81692854]
[1753208147054,17.16864514,203.86,203.67,0.68]
[1753208147237,0.68,203.85,203.7,44.09692854]
[1753208147559,0.68,203.85,203.72,14.81692854]
[1753208147752,14.81692854,203.84,203.77,14.81692854]
[1753208147955,14.81692854,203.82,203.76,14.81692854]
[1753208148163,14.81692854,203.84,203.77,14.81692854]
[1753208148340,14.81692854,203.78,203.65,14.81692854]
[1753208148540,14.81692854,203.74,203.63,4.91086775]
[1753208148746,14.81692854,203.7,203.63,37.76]
[1753208148948,14.81692854,203.66,203.59,37.76]
[1753208149247,14.81692854,203.67,203.6,31.60161251]
[1753208149453,6.656,203.76,203.66,14.81692854]
[1753208149634,14.81692854,203.67,203.54,0.66]
[1753208149836,14.81692854,203.67,203.43,27.9092578]
[1753208149837,14.81692854,203.56,203.48,0.66]
[1753208150045,14.81692854,203.59,203.53,4.94322903]
[1753208150258,14.81692854,203.56,203.53,0.03]
[1753208150456,14.81692854,203.54,203.53,0.03]
[1753208150869,26.0,203.51,203.32,2.41594493]
[1753208151171,19.4914444,203.39,203.33,4.91811341]
[1753208151349,0.72,203.47,203.37,19.4914444]
[1753208151551,19.4914444,203.45,203.38,19.4914444]
[1753208151858,64.34,203.52,203.44,19.4914444]
[1753208151859,0.72,203.52,203.44,19.4914444]
[1753208152187,19.4914444,203.5,203.43,19.4914444]
[1753208152344,0.14216157,203.49,203.29,4.91908111]
[1753208152663,19.4914444,203.39,203.31,16.78468397]
[1753208152861,19.4914444,203.41,203.33,19.4914444]
[1753208153167,19.4914444,203.42,203.34,19.4914444]
[1753208153381,0.72,203.48,203.38,16.78468397]
[1753208153551,19.4914444,203.45,203.37,29.69]
[1753208153742,19.4914444,203.44,203.37,29.69]
[1753208153959,19.4914444,203.44,203.33,38.8]
[1753208153960,0.14216157,203.37,203.2,19.4914444]
[1753208154161,0.72,203.43,203.29,19.4914444]
[1753208154162,0.72,203.36,203.29,19.4914444]
[1753208154365,0.14216157,203.43,203.29,19.4914444]
[1753208154366,19.4914444,203.37,203.29,19.4914444]
[1753208155084,19.4914444,203.37,203.3,19.4914444]
[1753208155407,19.4914444,203.37,203.21,39.08]
[1753208155408,0.72,203.36,203.18,12.30430561]
[1753208155559,0.14216157,203.35,203.2,19.4914444]
[1753208155761,0.72,203.4,203.25,29.69]
[1753208155984,19.4914444,203.37,203.29,19.4914444]
[1753208156964,0.72,203.36,203.17,4.92198651]
[1753208157165,0.72,203.36,203.22,19.4914444]
[1753208157367,0.14216157,203.35,203.22,19.4914444]
[1753208157574,19.4914444,203.3,203.22,19.4914444]
[1753208158315,0.14216157,203.23,203.06,0.03]
[1753208158603,0.14216157,203.23,203.08,4.95405378]
[1753208158604,26.0,203.21,203.08,4.95405378]
[1753208158787,19.4914444,203.17,203.1,19.4914444]
[1753208158975,19.4914444,203.21,203.13,19.4914444]
[1753208159166,0.72,203.26,203.15,24.41391548]
[1753208159368,0.72,203.26,203.16,16.78468397]
[1753208159567,19.4914444,203.25,203.17,19.4914444]
[1753208159967,19.4914444,203.25,203.12,1.29448138]
[1753208159968,26.0,203.15,203.08,0.03]
[1753208160219,19.4914444,203.14,203.1,4.92359064]
[1753208160769,0.72,203.18,203.1,4.92359064]
[1753208161072,19.4914444,203.18,203.1,24.41503504]
[1753208161277,0.72,203.17,203.1,4.92359064]
[1753208161489,26.0,203.09,203.08,0.03]
[1753208161690,46.35360597,203.09,203.08,0.03]
[1753208161895,63.13828994,203.09,203.08,0.03]
[1753208162298,46.2114444,203.09,203.08,0.03]
[1753208162498,46.35360597,203.09,203.08,0.03]
[1753208162989,46.35360597,203.09,203.06,0.03]
[1753208163186,46.35360597,203.09,202.92,0.03]
[1753208163187,16.92684554,203.02,202.92,0.03]
[1753208163384,26.0,202.93,202.85,0.1]
[1753208163713,19.4914444,202.86,202.85,0.1]
[1753208164226,19.4914444,202.87,202.85,0.1]
[1753208164382,20.2114444,202.87,202.85,0.1]
[1753208164578,20.2114444,202.86,202.85,0.1]
[1753208164782,19.4914444,202.86,202.85,0.1]
[1753208164981,19.4914444,202.89,202.85,0.1]
[1753208165266,19.4914444,202.87,202.85,0.1]
[1753208165394,43.64684554,202.86,202.85,0.1]
[1753208165588,26.86216157,202.86,202.85,0.1]
[1753208165796,46.35360597,202.86,202.85,0.1]
[1753208165983,63.13828994,202.86,202.85,0.1]
[1753208166314,26.0,202.86,202.85,0.1]
[1753208166699,46.2114444,202.86,202.85,0.1]
[1753208166917,0.72,202.86,202.85,0.1]
[1753208167101,19.4914444,202.89,202.85,0.1]
[1753208167303,17.64684554,202.86,202.85,0.1]
[1753208167615,17.64684554,202.86,202.7,12.33316771]
[1753208167616,42.92684554,202.84,202.67,19.4914444]
[1753208167795,42.92684554,202.84,202.66,12.33578062]
[1753208167796,19.4914444,202.74,202.69,4.93345919]
[1753208167994,20.2114444,202.74,202.69,4.93345919]
[1753208168190,20.2114444,202.74,202.66,12.33578062]
[1753208168191,19.4914444,202.74,202.63,4.93510339]
[1753208168414,19.63360597,202.76,202.68,19.4914444]
[1753208168596,0.14216157,202.76,202.63,5.59510339]
[1753208168925,0.14216157,202.79,202.66,16.78468397]
[1753208169133,19.4914444,202.8,202.73,19.4914444]
[1753208169310,19.4914444,202.8,202.74,4.93242576]
[1753208169716,26.0,202.81,202.71,19.4914444]
[1753208169717,26.0,202.77,202.71,19.4914444]
[1753208169927,19.4914444,202.75,202.68,24.42533032]
[1753208170237,19.4914444,202.76,202.68,24.42533032]
[1753208170441,19.4914444,202.76,202.68,36.76004514]
[1753208170612,45.4914444,202.78,202.71,19.4914444]
[1753208170807,19.4914444,202.82,202.75,19.4914444]
[1753208171137,6.2916,202.84,202.75,19.4914444]
[1753208171138,0.72,202.88,202.8,19.4914444]
[1753208171309,0.72,202.88,202.81,4.93072333]
[1753208171310,20.2114444,202.88,202.81,4.93072333]
[1753208171503,42.42,202.92,202.82,19.4914444]
[1753208171702,19.4914444,202.84,202.76,20.1514444]
[1753208171904,19.4914444,202.84,202.76,19.4914444]
[1753208172104,19.4914444,202.85,202.78,19.4914444]
[1753208172326,19.4914444,202.83,202.77,4.93169601]
[1753208172514,19.4914444,202.81,202.75,4.93201727]
[1753208172808,0.14216157,202.82,202.68,0.03]
[1753208172809,0.14216157,202.77,202.68,0.03]
[1753208173016,19.4914444,202.75,202.68,19.5214444]
[1753208173226,0.14216157,202.77,202.68,19.5214444]
[1753208173415,19.4914444,202.75,202.7,4.93322909]
[1753208173618,26.0,202.69,202.68,0.03]
[1753208173829,45.63360597,202.69,202.68,0.03]
[1753208174115,46.35360597,202.69,202.68,0.03]
[1753208174541,43.64684554,202.69,202.55,0.66]
[1753208174835,19.4914444,202.63,202.52,0.66]
[1753208175046,45.4914444,202.63,202.56,19.4914444]
[1753208175347,26.0,202.63,202.58,4.93632145]
[1753208175505,26.0,202.62,202.58,4.93632145]
[1753208175707,26.0,202.63,202.58,4.93632145]
[1753208175933,0.14216157,202.69,202.61,19.4914444]
[1753208176141,42.28,202.67,202.61,19.4914444]
[1753208176303,26.0,202.68,202.62,19.4914444]
[1753208176804,19.4914444,202.63,202.58,4.5061009]
[1753208177010,19.4914444,202.62,202.58,4.5061009]
[1753208177329,0.72,202.66,202.58,23.9975453]
[1753208177532,20.1814444,202.7,202.63,19.4914444]
[1753208177832,19.4914444,202.72,202.65,19.4914444]
[1753208178036,19.4914444,202.72,202.66,19.4914444]
[1753208178238,19.4914444,202.73,202.66,19.4914444]
[1753208178412,2.57475336,202.82,202.65,16.92684554]
[1753208178613,19.4914444,202.78,202.71,19.4914444]
[1753208179112,19.4914444,202.73,202.66,19.4914444]
[1753208179307,19.4914444,202.73,202.63,16.78468397]
[1753208179308,20.1814444,202.77,202.71,4.93315573]
[1753208179731,0.69,202.77,202.66,4.93437284]
[1753208179907,19.4914444,202.71,202.66,4.93437284]
[1753208180333,19.4914444,202.68,202.62,17.27323789]
[1753208180522,19.4914444,202.66,202.62,4.93534695]
[1753208180846,19.4914444,202.63,202.57,4.93656513]
[1753208181410,45.4914444,202.64,202.57,24.42800953]
[1753208181708,19.4914444,202.63,202.57,4.93656513]
[1753208182608,0.69,202.65,202.57,24.42800953]
[1753208182815,19.4914444,202.62,202.55,19.4914444]
[1753208183019,26.0,202.6,202.55,19.4914444]
[1753208183222,19.4914444,202.57,202.53,4.93754011]
[1753208183420,19.4914444,202.55,202.51,4.93802775]
[1753208183646,0.69,202.57,202.51,4.93802775]
[1753208183647,19.4914444,202.56,202.51,4.93802775]
[1753208184133,19.4914444,202.56,202.5,4.96826774]
[1753208184349,19.4914444,202.6,202.53,19.4914444]
[1753208184533,26.0,202.58,202.53,19.4914444]
[1753208184838,26.0,202.51,202.5,0.03]
[1753208185044,45.63360597,202.51,202.5,0.03]
[1753208185215,46.32360597,202.51,202.5,0.03]
[1753208185617,26.14216157,202.47,202.46,0.03]
[1753208185831,87.63360597,202.47,202.46,0.03]
[1753208186024,88.32360597,202.47,202.46,0.03]
[1753208186322,87.4914444,202.48,202.46,0.03]
[1753208186525,19.4914444,202.47,202.46,0.03]
[1753208186725,20.32360597,202.47,202.46,0.03]
[1753208187535,37.10828994,202.47,202.46,0.03]
[1753208187833,36.41828994,202.45,202.39,0.03]
[1753208188318,79.00828994,202.45,202.39,0.03]
[1753208188835,78.94828994,202.45,202.39,0.03]
[1753208189050,20.32360597,202.45,202.39,0.03]
[1753208189215,62.16360597,202.45,202.39,0.03]
[1753208190042,83.88778117,202.45,202.39,0.03]